Workbook

Sheet Лист1
B12: Согласовано | I12: Разработано и утвеждено
B13: Руководитель общеобразовательного учреждения | I13: Директор ООО "ФУДСОЦСЕРВИС"
B15: ________________________ | I15: ________________Э.Р. Харламова
B20: Примерное цикличное двенадцатидневное меню
B21: Для организации бесплатного горячего питания (горячих завтраков) для обучающихся начальных классов
B22: общеобразовательных организаций Республики Татарстан
B50: ПРИМЕРНОЕ ДВУХНЕДЕЛЬНОЕ МЕНЮ ДЛЯ ОБУЧАЮЩИХСЯ В ОБЩЕОБРАЗОВАТЕЛЬНЫХ ОРГАНИЗАЦИЯХ С 1 по 4 КЛАССЫ
J51: сезон (осенне-зимний)
A52: № рецептуры | B52: Наименование блюд | C52: Выход,г | D52: Белки, г | E52: Жиры, г | F52: Углеводы, г | G52: Калорийность, ккал | H52: Витамин B1, мг | I52: Витамин С, мг | J52: Витамин А, мг | K52: Витамин Е, мг | L52: Ca, мг | M52: P, мг | N52: Mg, мг | O52: Fe, мг
B53: 1-ая неделя
B54: 1 день
A55: Хим.состав и калорийность российских продуктов питания табл 9 стр 184 , 2012 Дели + | B55: Плоды и ягоды свежие (яблоки) | C55: 100 | D55: 0.40 | E55: 0.40 | F55: 9.80 | G55: 47.00 | H55: 0.03 | I55: 10.00 | K55: 0.20 | L55: 16.00 | M55: 11.00 | N55: 9.00 | O55: 2.20
A56: ТТК | B56: Сырники из творога с кашей молочной "Дружба" с маслом сливочным | C56: 60/150/5 | D56: 10.55 | E56: 11.85 | F56: 39.40 | G56: 324.45 | H56: 0.11 | I56: 0.88 | J56: 65.30 | K56: 1.83 | L56: 314.60 | M56: 252.49 | N56: 41.76 | O56: 1.01
A57: № 379 Сбор.рец. На прод-ию для обуч. Во всех образ.учреж-Дели 2017 | B57: Кофейный напиток с молоком | C57: 200 | D57: 3.2 | E57: 2.7 | F57: 6.0 | G57: 60.7 | H57: 0.0 | I57: 1.3 | J57: 20.0 | K57: 0.0 | L57: 125.8 | M57: 90.0 | N57: 14.0 | O57: 0.1
A58: Хим.состав и калорийность российских продуктов питания,табл 6, стр 144 , 2012 Дели + | B58: Хлеб ржаной | C58: 30 | D58: 1.98 | E58: 0.36 | F58: 11.88 | G58: 59.40 | H58: 0.05 | I58: 0.00 | J58: 0.00 | K58: 0.42 | L58: 8.70 | M58: 45.00 | N58: 14.10 | O58: 1.17
B59: Итого: | C59: =C55+215+200+C58 -> 545 | D59: =SUM(D55:D58) -> 16.10 | E59: =SUM(E55:E58) -> 15.29 | F59: 67.08 | G59: 491.55 | H59: 0.24 | I59: 12.18 | J59: 85.30 | K59: 2.45 | L59: 465.08 | M59: 398.49 | N59: 78.86 | O59: 4.51 | P59: 20%
B61: 2 день
A62: ТТК | B62: Салат из моркови с яблоками | C62: 60 | D62: 0.64 | E62: 3.01 | F62: 5.11 | G62: 50.91 | H62: 0.03 | I62: 2.63 | J62: 0.00 | K62: 0.21 | L62: 14.40 | M62: 26.72 | N62: 18.23 | O62: 0.64
A63: ТТК | B63: Котлета из мяса птицы с макаронными изделиями отварными, с маслом сливочным | C63: 75/150/5 | D63: 11.45 | E63: 12.46 | F63: 31.32 | G63: 289.95 | H63: 0.10 | I63: 0.50 | J63: 23.90 | K63: 4.80 | L63: 31.70 | M63: 147.63 | N63: 38.18 | O63: 2.08
A64: №349 Сбор.рец. На прод-ию для обуч. Во всех образ.учреж-Дели 2017 | B64: Компот из сухофруктов (75С) | C64: 200 | D64: 0.66 | E64: 0.09 | F64: 22.03 | G64: 92.80 | H64: 0.02 | I64: 0.73 | J64: 0.00 | K64: 0.51 | L64: 32.18 | M64: 23.44 | N64: 17.46 | O64: 0.67
A65: Хим.состав и калорийность российских продуктов питания,табл 6, стр 144 , 2012 Дели + | B65: Хлеб ржаной | C65: 30 | D65: 1.98 | E65: 0.36 | F65: 11.88 | G65: 59.40 | H65: 0.05 | I65: 0.00 | J65: 0.00 | K65: 0.42 | L65: 8.70 | M65: 45.00 | N65: 14.10 | O65: 1.17
B66: Итого: | C66: 520 | D66: =SUM(D62:D65) -> 14.73 | E66: =SUM(E62:E65) -> 15.92 | F66: 70.35 | G66: 493.06 | H66: 0.20 | I66: 3.85 | J66: 23.90 | K66: 5.93 | L66: 86.97 | M66: 242.79 | N66: 87.97 | O66: 4.55 | P66: 20%
B68: 3 день
A69: № 15 Сбор.рец. На прод-ию для обуч. Во всех образ.учреж-Дели -2017 | B69: Сыр порционно | C69: 10 | D69: 2.63 | E69: 2.66 | F69: 0.00 | G69: 34.33 | H69: 0.00 | I69: 0.07 | J69: 21.00 | K69: 0.04 | L69: 100.00 | M69: 60.00 | N69: 5.50 | O69: 0.07
A70: № 260 Сбор.рец. На прод-ию для обуч. Во всех образ.учреж-Дели -2017 | B70: Гуляш из говядины | C70: 50/50 | D70: 10.39 | E70: 14.79 | F70: 10.30 | G70: 221.00 | H70: 0.03 | I70: 0.92 | K70: 2.61 | L70: 61.81 | M70: 154.15 | N70: 22.03 | O70: 3.06
A71: № 171 Сбор.рец. На прод-ию для обуч. Во всех образ.учреж-Дели 2017 | B71: Каша гречневая рассыпчатая | C71: 150 | D71: 3.77 | E71: 2.29 | F71: 39.72 | G71: 214.00 | H71: 0.21 | I71: 0.00 | J71: 0.00 | K71: 0.40 | L71: 23.99 | M71: 207.35 | N71: 140.52 | O71: 4.71
A72: № 377 Сбор.рец. На прод-ию для обуч. Во всех образ.учреж-Дели 2017 | B72: Чай с сахаром, с лимоном | C72: 185/10/5 | D72: 0.11 | E72: 0.02 | F72: 10.15 | G72: 41.32 | H72: -0.00 | I72: 2.03 | J72: 0.00 | K72: 0.01 | L72: 13.25 | M72: 3.96 | N72: 2.16 | O72: 0.33
A73: Хим.состав и калорийность российских продуктов питания табл 6 стр 134 , 2012 Дели + | B73: Хлеб ржаной | C73: 50 | D73: 3.30 | E73: 0.60 | F73: 19.80 | G73: 99.00 | H73: 0.09 | I73: 0.00 | J73: 0.00 | K73: 0.70 | L73: 14.50 | M73: 75.00 | N73: 23.50 | O73: 1.95
B74: Итого: | C74: 510 | D74: =SUM(D69:D73) -> 20.20 | E74: =SUM(E69:E73) -> 20.36 | F74: 79.97 | G74: 609.65 | H74: 0.33 | I74: 3.02 | J74: 21.00 | K74: 3.76 | L74: 213.55 | M74: 500.46 | N74: 193.71 | O74: 10.12 | P74: 25%
B81: 4 день
A82: ТТК Хим.состав и калорийность российских продуктов питания,табл 8, стр 168 , 2012 Дели +, | B82: Свекла отварная дольками | C82: 60 | D82: 1.08 | E82: 0.06 | F82: 5.88 | G82: 28.80 | H82: 0.01 | I82: 5.34 | J82: 0.00 | K82: 0.06 | L82: 27.00 | M82: 30.60 | N82: 15.60 | O82: 1.02
A83: ТТК | B83: Птица запеченная | C83: 100 | D83: 10.42 | E83: 12.43 | F83: 8.65 | G83: 192 | H83: 0.06 | I83: 1.28 | J83: 51.8 | K83: 0.8 | L83: 41.26 | M83: 216.4 | N83: 23.42 | O83: 1.78
A84: № 312 Сбор.рец. На прод-ию для обуч. Во всех образ.учреж-Дели -2017 | B84: Пюре картофельное с маслом сливочным | C84: 150/3 | D84: 3.08 | E84: 6.25 | F84: 20.47 | G84: 150.45 | H84: 0.14 | I84: 18.16 | J84: 8.00 | K84: 0.20 | L84: 37.46 | M84: 87.20 | N84: 27.75 | O84: 1.01
A85: ТТК | B85: Напиток из свежих фруктов (75С) | C85: 200 | D85: 0.34 | E85: 0.17 | F85: 21.46 | G85: 103.50 | H85: 0.02 | I85: 3.17 | J85: 0.00 | K85: 0.13 | L85: 16.67 | M85: 7.05 | N85: 7.78 | O85: 0.88
A86: Хим.состав и калорийность российских продуктов питания табл 6 стр 134 , 2012 Дели + | B86: Хлеб пшеничный | C86: 30 | D86: 2.28 | E86: 0.24 | F86: 14.76 | G86: 70.50 | H86: 0.03 | I86: 0.00 | J86: 0.00 | K86: 0.33 | L86: 6.00 | M86: 19.50 | N86: 4.20 | O86: 0.33
A87: Хим.состав и калорийность российских продуктов питания,табл 6, стр 144 , 2012 Дели + | B87: Хлеб ржаной | C87: 30 | D87: 1.98 | E87: 0.36 | F87: 11.88 | G87: 59.40 | H87: 0.05 | I87: 0.00 | J87: 0.00 | K87: 0.42 | L87: 8.70 | M87: 45.00 | N87: 14.10 | O87: 1.17
B88: Итого: | C88: =C82+C83+153+C85+C86+C87 -> 573 | D88: =SUM(D82:D87) -> 19.18 | E88: =SUM(E82:E87) -> 19.51 | F88: 83.10 | G88: 604.65 | H88: 0.32 | I88: 27.95 | J88: 59.80 | K88: 1.94 | L88: 137.08 | M88: 405.75 | N88: 92.85 | O88: 6.19 | P88: 25%
B90: 5 день
A91: № 15 Сбор.рец. На прод-ию для обуч. Во всех образ.учреж-Дели 2017 | B91: Сыр порционно | C91: 15 | D91: 3.95 | E91: 3.99 | F91: 0.00 | G91: 51.50 | H91: 0.01 | I91: 0.11 | J91: 31.50 | K91: 0.06 | L91: 150.00 | M91: 90.00 | N91: 8.25 | O91: 0.11
A92: №279,331 Сбор.рец. На прод-ию для питания детей в дошк образоват учрежд-Дели 2017 | B92: Тефтели мясные в сметанно-томатном соусе | C92: 60/40 | D92: 7.080 | E92: 11.940 | F92: 8.360 | G92: 144 | H92: 0.048 | I92: 0.276 | J92: 29.620 | K92: 0.421 | L92: 20.726 | M92: 80.202 | N92: 15.521 | O92: 0.640
A93: № 203 Сбор.рец. На прод-ию для обуч. Во всех образ.учреж-Дели 2017 | B93: Макаронные изделия отварные с маслом сливочным | C93: 180/5 | D93: 5.10 | E93: 3.62 | F93: 31.96 | G93: 176.10 | H93: 0.06 | I93: 0.00 | J93: 12.00 | K93: 0.80 | L93: 11.91 | M93: 38.07 | N93: 8.62 | O93: 0.86
A94: №349 Сбор.рец. На прод-ию для обуч. Во всех образ.учреж-Дели 2017 | B94: Компот из сухофруктов (75С) | C94: 200 | D94: 0.66 | E94: 0.09 | F94: 22.03 | G94: 92.80 | H94: 0.02 | I94: 0.73 | J94: 0.00 | K94: 0.51 | L94: 32.18 | M94: 23.44 | N94: 17.46 | O94: 0.67
A95: Хим.состав и калорийность российских продуктов питания табл 6 стр 134 , 2012 Дели + | B95: Хлеб пшеничный | C95: 45 | D95: =D86*1.5 -> 3.42 | E95: 0.36 | F95: 22.14 | G95: 105.75 | H95: 0.05 | I95: 0.00 | J95: 0.00 | K95: 0.50 | L95: 9.00 | M95: 29.25 | N95: 6.30 | O95: 0.50
B96: Итого: | C96: 545 | D96: =SUM(D91:D95) -> 20.21 | E96: =SUM(E91:E95) -> 20.00 | F96: 84.50 | G96: 570.15 | H96: 0.18 | I96: 1.11 | J96: 73.12 | K96: 2.29 | L96: 223.82 | M96: 260.96 | N96: 56.15 | O96: 2.77 | P96: 25%
B98: 6 день
A99: № 47 Сбор.рец. На прод-ию для обуч. Во всех образ.учреж-Дели -2017 | B99: Салат из свежей капусты с морковью | C99: 80 | D99: 1.05 | E99: 2.60 | F99: 5.17 | G99: 48.32 | H99: 0.02 | I99: 13.68 | J99: 0.00 | K99: 6.71 | L99: 19.98 | M99: 22.65 | N99: 12.07 | O99: 0.37
A100: ТТК | B100: Биточки рыбные с рисом отварным рассыпчатыйм,с маслом сливочным | C100: 75/150/3 | D100: 12.93 | E100: 12.41 | F100: 43.12 | G100: 304.30 | H100: 0.08 | I100: 0.50 | J100: 15.90 | K100: 3.96 | L100: 41.00 | M100: 189.24 | N100: 44.95 | O100: 1.54
A101: № 377 Сбор.рец. На прод-ию для обуч. Во всех образ.учреж-Дели 2017 | B101: Чай с сахаром, с лимоном | C101: 185/10/5 | D101: 0.11 | E101: 0.02 | F101: 10.15 | G101: 41.32 | H101: -0.00 | I101: 2.03 | J101: 0.00 | K101: 0.01 | L101: 13.25 | M101: 3.96 | N101: 2.16 | O101: 0.33
A102: Хим.состав и калорийность российских продуктов питания,табл 6, стр 144 , 2012 Дели + | B102: Хлеб ржаной | C102: 30 | D102: 1.98 | E102: 0.36 | F102: 11.88 | G102: 59.40 | H102: 0.05 | I102: 0.00 | J102: 0.00 | K102: 0.42 | L102: 8.70 | M102: 45.00 | N102: 14.10 | O102: 1.17
B103: Итого: | C103: 538 | D103: =SUM(D99:D102) -> 16.08 | E103: =SUM(E99:E102) -> 15.39 | F103: 70.32 | G103: 453.34 | H103: 0.14 | I103: 16.20 | J103: 15.90 | K103: 11.10 | L103: 82.92 | M103: 260.85 | N103: 73.28 | O103: 3.41 | P103: 20%
B104: Итого за 6 дней 1 недели: | C104: =C59+C66+C74+C88+C96+C103 -> 3231 | D104: =D59+D66+D74+D88+D96+D103 -> 106.48 | E104: 106.47 | F104: 455.31 | G104: 3222.40 | H104: 1.40 | I104: 64.31 | J104: 279.02 | K104: 27.46 | L104: 1209.42 | M104: 2069.28 | N104: 582.82 | O104: 31.56
B117: 2-ая неделя
B118: 1 день
A119: ТТК | B119: Сырники из творога с кашей пшенной молочной с маслом сливочным | C119: 60/180/5 | D119: 16.02 | E119: 18.13 | F119: 42.98 | G119: 386.40 | H119: 0.13 | I119: 1.02 | J119: 67.52 | K119: 1.84 | L119: 344.24 | M119: 275.54 | N119: 47.35 | O119: 1.13
A120: № 376 Сбор.рец. На прод-ию для обуч. Во всех образ.учреж-Дели 2017 | B120: Чай "Витаминный" с шиповником | C120: 185/10/5 | D120: 0.24 | E120: 0.09 | F120: 12.43 | G120: 54.20 | H120: 0.00 | I120: 50.03 | J120: 0.00 | K120: 0.19 | L120: 13.95 | M120: 3.65 | N120: 2.25 | O120: 0.42
A121: Хим.состав и калорийность российских продуктов питания табл 6 стр 134 , 2012 Дели + | B121: Хлеб пшеничный | C121: 25 | D121: 1.90 | E121: 0.20 | F121: 12.30 | G121: 58.75 | H121: 0.03 | I121: 0.00 | J121: 0.00 | K121: 0.28 | L121: 5.00 | M121: 16.25 | N121: 3.50 | O121: 0.28
A122: Хим.состав и калорийность российских продуктов питания,табл 6, стр 144 , 2012 Дели + | B122: Хлеб ржаной | C122: 30 | D122: 1.98 | E122: 0.36 | F122: 11.88 | G122: 59.40 | H122: 0.05 | I122: 0.00 | J122: 0.00 | K122: 0.42 | L122: 8.70 | M122: 45.00 | N122: 14.10 | O122: 1.17
B123: Итого: | C123: 500 | D123: =SUM(D119:D122) -> 20.14 | E123: =SUM(E119:E122) -> 18.78 | F123: 79.59 | G123: 558.75 | H123: 0.21 | I123: 51.05 | J123: 67.52 | K123: 2.72 | L123: 371.89 | M123: 340.44 | N123: 67.20 | O123: 2.99 | P123: 25%
B125: 2 день
A126: Хим.состав и калорийность российских продуктов питания табл 9 стр 184 , 2012 Дели + | B126: Плоды и ягоды свежие (апельсины) | C126: 180 | D126: 1.62 | E126: 0.36 | F126: 14.58 | G126: 77.40 | H126: 0.07 | I126: 108.00 | K126: 0.36 | L126: 61.20 | M126: 41.40 | N126: 23.40 | O126: 0.54
A127: № 143,241 Сбор.рец. На прод-ию для обуч. Во всех образ.учреж-Дели 2017 | B127: Овощи тушеные с мясом | C127: 50/150 | D127: 12.48 | E127: 15.68 | F127: 19.34 | G127: 271.50 | H127: 0.12 | I127: 18.77 | J127: 39.00 | K127: 4.67 | L127: 89.15 | M127: 148.63 | N127: 39.69 | O127: 2.23
A128: №349 Сбор.рец. На прод-ию для обуч. Во всех образ.учреж-Дели 2017 | B128: Компот из сухофруктов (75С) | C128: 200 | D128: 0.66 | E128: 0.09 | F128: 22.03 | G128: 92.80 | H128: 0.02 | I128: 0.73 | J128: 0.00 | K128: 0.51 | L128: 32.18 | M128: 23.44 | N128: 17.46 | O128: 0.67
A129: Хим.состав и калорийность российских продуктов питания,табл 6, стр 144 , 2012 Дели + | B129: Хлеб ржаной | C129: 20 | D129: 1.32 | E129: 0.24 | F129: 7.92 | G129: 39.60 | H129: 0.03 | I129: 0.00 | J129: 0.00 | K129: 0.28 | L129: 5.80 | M129: 30.00 | N129: 9.40 | O129: 0.78
B130: Итого: | C130: 600 | D130: =SUM(D126:D129) -> 16.08 | E130: 16.37 | F130: 63.87 | G130: 481.30 | H130: 0.24 | I130: 127.49 | J130: 39.00 | K130: 5.82 | L130: 188.33 | M130: 243.47 | N130: 89.95 | O130: 4.21 | P130: 20%
B132: 3 день
A133: Хим.состав и калорийность российских продуктов питания табл 9 стр 184 , 2012 Дели + | B133: Плоды и ягоды свежие (яблоки) | C133: 100 | D133: 0.40 | E133: 0.40 | F133: 9.80 | G133: 47.00 | H133: 0.03 | I133: 10.00 | K133: 0.20 | L133: 16.00 | M133: 11.00 | N133: 9.00 | O133: 2.20
A134: № 265 Сбор.рец. На прод-ию для обуч. Во всех образ.учреж-Дели -2017 | B134: Плов из говядины с рисовой крупой | C134: 50/150 | D134: 15.95 | E134: 19.55 | F134: 39.75 | G134: 408.42 | H134: 0.04 | I134: 0.27 | J134: 0.00 | K134: 4.23 | L134: 89.33 | M134: 176.23 | N134: 40.58 | O134: 2.64
A135: № 376 Сбор.рец. На прод-ию для обуч. Во всех образ.учреж-Дели 2017 | B135: Чай с сахаром | C135: 190/10 | D135: 0.07 | E135: 0.02 | F135: 10.01 | G135: 40.00 | H135: 0.00 | I135: 0.03 | J135: 0.00 | K135: 0.00 | L135: 10.95 | M135: 2.80 | N135: 1.40 | O135: 0.27
A136: Хим.состав и калорийность российских продуктов питания табл 6 стр 134 , 2012 Дели + | B136: Хлеб пшеничный | C136: 25 | D136: 1.90 | E136: 0.20 | F136: 12.30 | G136: 58.75 | H136: 0.03 | I136: 0.00 | J136: 0.00 | K136: 0.28 | L136: 5.00 | M136: 16.25 | N136: 3.50 | O136: 0.28
A137: Хим.состав и калорийность российских продуктов питания,табл 6, стр 144 , 2012 Дели + | B137: Хлеб ржаной | C137: 20 | D137: 1.32 | E137: 0.24 | F137: 7.92 | G137: 39.60 | H137: 0.03 | I137: 0.00 | J137: 0.00 | K137: 0.28 | L137: 5.80 | M137: 30.00 | N137: 9.40 | O137: 0.78
B138: Итого: | C138: 545 | D138: =SUM(D133:D137) -> 19.64 | E138: =SUM(E133:E137) -> 20.41 | F138: 79.78 | G138: 593.77 | H138: 0.13 | I138: 10.30 | J138: 0.00 | K138: 4.98 | L138: 127.08 | M138: 236.28 | N138: 63.88 | O138: 6.16 | P138: 25%
B146: 4 день
A147: ТТК | B147: Салат из моркови | C147: 60 | D147: 0.74 | E147: 0.06 | F147: 9.98 | G147: 49.02 | H147: 0.03 | I147: 2.02 | J147: 0.00 | K147: 8.04 | L147: 15.46 | M147: 31.66 | N147: 21.63 | O147: 0.40
A148: ТТК | B148: Котлета из мяса птицы с макаронными изделиями отварными, с маслом сливочным | C148: 75/150/5 | D148: 11.45 | E148: 12.46 | F148: 31.32 | G148: 289.95 | H148: 0.10 | I148: 0.50 | J148: 23.90 | K148: 4.80 | L148: 31.70 | M148: 147.63 | N148: 38.18 | O148: 2.08
A149: № 382 Сбор.рец. На прод-ию для обуч. Во всех образ.учреж-Дели 2017 | B149: Какао с молоком | C149: 200 | D149: 1.58 | E149: 3.54 | F149: 7.60 | G149: 78.60 | H149: 0.06 | I149: 1.59 | J149: 24.40 | K149: 0.00 | L149: 151.92 | M149: 124.56 | N149: 21.34 | O149: 0.45
A150: Хим.состав и калорийность российских продуктов питания табл 6 стр 134 , 2012 Дели + | B150: Хлеб пшеничный | C150: 30 | D150: 2.28 | E150: 0.24 | F150: 14.76 | G150: 70.50 | H150: 0.03 | I150: 0.00 | J150: 0.00 | K150: 0.33 | L150: 6.00 | M150: 19.50 | N150: 4.20 | O150: 0.33
B151: Итого: | C151: 520 | D151: =SUM(D147:D150) -> 16.05 | E151: =SUM(E147:E150) -> 16.30 | F151: =SUM(F147:F150) -> 63.66 | G151: 488.07 | H151: 0.22 | I151: 4.10 | J151: 48.30 | K151: 13.17 | L151: 205.07 | M151: 323.35 | N151: 85.34 | O151: 3.25 | P151: 20%
B153: 5 день
A154: № 52 Сбор.рец. На прод-ию для обуч. Во всех образ.учреж-Дели -2017 | B154: Салат из отварной свеклы | C154: 60 | D154: 0.84 | E154: 3.61 | F154: 4.96 | G154: 55.68 | H154: 0.01 | I154: 3.99 | J154: 0.00 | K154: 1.62 | L154: 21.28 | M154: 24.38 | N154: 12.42 | O154: 0.79
A155: ТТК | B155: Биточки рыбные с картофельным пюре, с маслом сливочным | C155: 75/150/3 | D155: 12.24 | E155: 12.49 | F155: 31.49 | G155: 290.55 | H155: 0.18 | I155: 18.40 | J155: 15.90 | K155: 3.98 | L155: 70.31 | M155: 210.27 | N155: 56.45 | O155: 2.10
A156: №342 Сбор.рец. На прод-ию для обуч. Во всех образ.учреж-Дели 2017 | B156: Компот из свежих яблок (75С) | C156: 200 | D156: 0.16 | E156: 0.16 | F156: 17.90 | G156: 74.60 | H156: 0.01 | I156: 0.90 | J156: 0.00 | K156: 0.08 | L156: 13.88 | M156: 4.40 | N156: 5.14 | O156: 0.92
A157: Хим.состав и калорийность российских продуктов питания табл 6 стр 134 , 2012 Дели + | B157: Хлеб пшеничный | C157: 30 | D157: 2.28 | E157: 0.24 | F157: 14.76 | G157: 70.50 | H157: 0.03 | I157: 0.00 | J157: 0.00 | K157: 0.33 | L157: 6.00 | M157: 19.50 | N157: 4.20 | O157: 0.33
B158: Итого: | C158: =C154+75+153+C156+C157 -> 518 | D158: =SUM(D154:D157) -> 15.52 | E158: 16.50 | F158: 69.11 | G158: 491.33 | H158: 0.24 | I158: 23.29 | J158: 15.90 | K158: 6.01 | L158: 111.46 | M158: 258.55 | N158: 78.20 | O158: 4.14 | P158: 20%
B161: 6 день
A162: № 47 Сбор.рец. На прод-ию для обуч. Во всех образ.учреж-Дели -2017 | B162: Салат из свежей капусты с морковью | C162: 80 | D162: 1.05 | E162: 2.60 | F162: 5.17 | G162: 48.32 | H162: 0.02 | I162: 13.68 | J162: 0.00 | K162: 6.71 | L162: 19.98 | M162: 22.65 | N162: 12.07 | O162: 0.37
A163: ТТК | B163: Котлеты "Аппетитные" с кашей гречневой рассыпчатой с маслом сливочным | C163: 75/150/3 | D163: 15.16 | E163: 16.19 | F163: 44.63 | G163: 386.76 | H163: 0.26 | I163: 1.49 | J163: 71.98 | K163: 1.73 | L163: 41.59 | M163: 320.78 | N163: 154.60 | O163: 6.23
A164: № 377 Сбор.рец. На прод-ию для обуч. Во всех образ.учреж-Дели 2017 | B164: Чай с сахаром, с лимоном | C164: 185/10/5 | D164: 0.11 | E164: 0.02 | F164: 10.15 | G164: 41.32 | H164: -0.00 | I164: 2.03 | J164: 0.00 | K164: 0.01 | L164: 13.25 | M164: 3.96 | N164: 2.16 | O164: 0.33
A165: Хим.состав и калорийность российских продуктов питания табл 6 стр 134 , 2012 Дели + | B165: Хлеб пшеничный | C165: 45 | D165: 3.42 | E165: 0.36 | F165: 22.14 | G165: 105.75 | H165: 0.05 | I165: 0.00 | J165: 0.00 | K165: 0.50 | L165: 9.00 | M165: 29.25 | N165: 6.30 | O165: 0.50
B166: Итого: | C166: 553 | D166: =SUM(D162:D165) -> 19.74 | E166: =SUM(E162:E165) -> 19.17 | F166: 82.09 | G166: 582.15 | H166: 0.33 | I166: 17.20 | J166: 71.98 | K166: 8.94 | L166: 83.82 | M166: 376.63 | N166: 175.14 | O166: 7.43 | P166: 25%
B167: Итого за 6 дней 2 недели: | C167: =C123+C130+C138+C151+C158+C166 -> 3236 | D167: 107.1625333 | E167: 107.5248 | F167: 438.0868 | G167: 3195.366667 | H167: 1.37165 | I167: 233.4219952 | J167: 242.6991667 | K167: 41.63509524 | L167: 1087.652843 | M167: 1778.725305 | N167: 559.7121548 | O167: 28.1863619
B168: ВСЕГО за 12 дней: | C168: =C104+C167 -> 6467 | D168: 213.65 | E168: 213.99 | F168: 893.40 | G168: 6417.77 | H168: 2.77 | I168: 297.73 | J168: 521.72 | K168: 69.10 | L168: 2297.07 | M168: 3848.01 | N168: 1142.53 | O168: 59.75
B169: В среднем на 1 учащегося в день: | C169: =C168/12 -> 539 | D169: =D168/12 -> 17.80 | E169: 17.83 | F169: 74.45 | G169: 534.81 | H169: 0.23 | I169: 24.81 | J169: 43.48 | K169: 5.76 | L169: 191.42 | M169: 320.67 | N169: 95.21 | O169: 4.98 | P169: 20-25%
